fUSD/lending_fUSD_20241112
["ID","MTS","AMOUNT","RATE_DAILY","PERIOD"]
[342047868,1731387829975,-1000.0,0.0003593,30]
[342047869,1731387830000,-903.85305857,0.0003593,30]
[342047870,1731387830024,-577.74661067,0.0003593,120]
[342047871,1731387830047,-3313.12043068,0.0003593,120]
[342047872,1731387830070,-7842.19991551,0.0003593,30]
[342047873,1731387830094,-807.0,0.0003593,30]
[342047874,1731387830118,-1000.0,0.0003593,31]
[342047875,1731387830142,-1438.5,0.0003593,30]
[342047876,1731387830167,-508.41430123,0.0003593,120]
[342047877,1731387830191,-1138.9665,0.0003593,30]
[342047878,1731387830217,-13044.48083287,0.0003593,120]
[342047879,1731387830241,-169.88981711,0.0003593,30]
[342047880,1731387830265,-4263.52624949,0.0003593,120]
[342047881,1731387830289,-14353.0,0.0003593,120]
[342047882,1731387830312,-174.11686226,0.0003593,120]
[342047883,1731387830614,-152.82304129,0.0003593,60]
[342047884,1731387830642,-177.0,0.0003593,30]
[342047885,1731387830667,-66902.98718674,0.0003593,30]
[342047886,1731387830692,-274.26471034,0.0003593,30]
[342047887,1731387830718,-216.52841667,0.0003593,30]
[342047888,1731387830742,-340.77898748,0.0003593,30]
[342047889,1731387830767,-414.21152029,0.0003593,120]
[342047890,1731387830792,-412.41678283,0.0003593,30]
[342047891,1731387830821,-8692.18227747,0.0003593,120]
[342047892,1731387830846,-430.53102852,0.0003593,120]
[342047893,1731387830872,-1053.0,0.0003593,30]
[342047894,1731387830899,-1053.0,0.0003593,30]
[342047895,1731387830924,-1053.0,0.0003593,30]
[342047896,1731387830948,-1053.0,0.0003593,30]
[342047897,1731387830978,-1053.0,0.0003593,30]
[342047898,1731387831003,-21374.95145904,0.0003593,30]
[342047899,1731387835846,-46619.51890664,0.0003593,30]
[342047900,1731387835871,-95584.7255822,0.0003593,120]
[342047901,1731387835896,-1095.76142731,0.0003593,120]
[342047902,1731387835921,-158.071659,0.0003593,40]
[342047903,1731387835945,-158.0,0.0003593,30]
[342047904,1731387853303,3000.0,0.0003593,120]
[342047905,1731387860754,439.0,0.0003593,30]
[342047906,1731387888036,811.5,0.0003593,30]
[342047907,1731387942487,-177.46570506,0.00012603,2]
[342047908,1731388018510,1333.0,0.00026137,120]
[342047910,1731388086783,595.22,0.0001056,2]
[342047912,1731388189081,-265.53,0.00012501,2]
[342047913,1731388189482,-150.0,0.00012501,2]
[342047914,1731388189917,-150.0,0.00012501,2]
[342047915,1731388190335,-150.0,0.00012501,2]
[342047916,1731388190766,-150.0,0.00012501,2]
[342047917,1731388191254,-150.0,0.00012501,2]
[342047918,1731388191864,-150.0,0.00012501,2]
[342047925,1731388231780,-1746.94,0.00012501,2]
[342047926,1731388231790,-265.39527138,0.00012529,2]
[342047927,1731388231800,-1633.95472862,0.00012529,2]
[342047928,1731388231811,-23722.53429494,0.00012603,2]
[342047929,1731388231820,-15236.27368144,0.00012622,2]
[342047930,1731388232007,-531.49394568,0.00012622,2]
[342047933,1731388232390,-257.04253737,0.00012622,2]
[342047938,1731388237770,-4999.65459,0.00012622,2]
[342047939,1731388237859,-7118.93478761,0.00012622,2]
[342047940,1731388237869,-200.0,0.00012622,2]
[342047941,1731388237879,-167.92839153,0.00012622,2]
[342047942,1731388237888,-150.0,0.00012641,2]
[342047943,1731388237897,-250.0,0.00012642,2]
[342047944,1731388237907,-250.0,0.00012707,2]
[342047945,1731388237916,-6030.60148482,0.0001271,2]
[342047946,1731388237934,-4586.01760137,0.0001271,2]
[342047947,1731388237945,-999.30676198,0.0001271,2]
[342047948,1731388237957,-8828.09070953,0.0001271,2]
[342047949,1731388237970,-219.83,0.0001272,2]
[342047950,1731388237979,-150.99,0.0001272,2]
[342047951,1731388237988,-258.14,0.0001272,2]
[342047952,1731388237997,-530.81587064,0.0001272,2]
[342047953,1731388238078,-399.83412936,0.0001272,2]
[342047954,1731388238088,-468.52,0.0001272,2]
[342047955,1731388238097,-447.75,0.0001272,2]
[342047956,1731388238106,-165.87,0.00012767,2]
[342047957,1731388238116,-3557.35,0.00012767,2]
[342047958,1731388238125,-595.22,0.00012824,2]
[342047959,1731388238135,-4732.71279615,0.00012824,2]
[342047960,1731388238146,-5267.27720385,0.00012824,2]
[342047961,1731388238156,-1000.0,0.00012842,2]
[342047962,1731388238164,-522.1,0.00012881,2]
[342047963,1731388238173,-367.584,0.00013026,2]
[342047964,1731388238182,-495.79,0.00013058,2]
[342047965,1731388238192,-219.83,0.00013356,2]
[342047966,1731388238201,-158.05561667,0.00013598,2]
[342047967,1731388238211,-28521.53851336,0.00013598,2]
[342047968,1731388238222,-711.85380473,0.00013598,2]
[342047969,1731388238233,-10686.59768191,0.00013598,2]
[342047970,1731388238243,-1020.42,0.00013671,2]
[342047971,1731388238252,-500.0,0.00013673,2]
[342047972,1731388238262,-503.94101987,0.00013673,2]
[342047973,1731388238271,-687.00375403,0.00013688,2]
[342047974,1731388238280,-644.11071937,0.00013698,2]
[342047975,1731388238289,-500.0,0.00013698,2]
[342047976,1731388238299,-500.0,0.00013698,2]
[342047977,1731388238308,-308.65776273,0.00013698,2]
[342047978,1731388238317,-500.0,0.00013698,2]
[342047979,1731388238327,-500.0,0.00013698,2]
[342047981,1731388238336,-500.0,0.00013698,2]
[342047983,1731388238345,-500.0,0.00013698,2]
[342047985,1731388238354,-500.0,0.00013698,2]
[342047987,1731388238363,-500.0,0.00013698,2]
[342047988,1731388238372,-500.0,0.00013698,2]
[342047989,1731388238382,-549.15745659,0.00013698,2]
[342047990,1731388238391,-315.03701359,0.00013698,2]
[342047991,1731388238401,-500.0,0.00013698,2]
[342047992,1731388238410,-501.99131607,0.00013698,2]
[342047993,1731388238419,-501.53,0.00013698,2]
[342047994,1731388238429,-502.74099353,0.00013698,2]
[342047995,1731388238438,-565.66342385,0.00013698,2]
[342047996,1731388238447,-65.51221228,0.00013698,2]
[342047999,1731388239808,-434.7467185,0.00013698,2]
[342048000,1731388239818,-296.62677078,0.00013698,2]
[342048001,1731388239865,-203.37322922,0.00013698,2]
[342048002,1731388239876,-351.17976278,0.00013698,2]
[342048009,1731388242800,-149.60146924,0.00013698,2]
[342048010,1731388242810,-501.66153001,0.00013698,2]
[342048011,1731388242820,-500.0,0.00013698,2]
[342048012,1731388242831,-500.0,0.00013698,2]
[342048013,1731388242841,-266.30005695,0.00013698,2]
[342048014,1731388242851,-500.0,0.00013698,2]
[342048015,1731388242862,-500.0,0.00013698,2]
[342048016,1731388242871,-500.0,0.00013698,2]
[342048017,1731388242881,-501.64723852,0.00013698,2]
[342048018,1731388243089,-500.0,0.00013698,2]
[342048019,1731388243099,-500.57662851,0.00013698,2]
[342048020,1731388243108,-354.70297304,0.00013698,2]
[342048021,1731388243118,-301.32455486,0.00013698,2]
[342048022,1731388243128,-501.27549232,0.00013698,2]
[342048023,1731388243138,-478.3472431,0.00013698,2]
[342048024,1731388243148,-500.0,0.00013698,2]
[342048025,1731388243157,-500.0,0.00013698,2]
[342048026,1731388243166,-501.7835208,0.00013698,2]
[342048027,1731388243176,-862.94,0.00013698,2]
[342048028,1731388243185,-862.94,0.00013698,2]
[342048029,1731388243195,-862.94,0.00013698,2]
[342048030,1731388243204,-502.04733977,0.00013698,2]
[342048031,1731388243214,-507.18589022,0.00013698,2]
[342048032,1731388243223,-500.0,0.00013698,2]
[342048033,1731388243232,-500.0,0.00013698,2]
[342048034,1731388243242,-500.0,0.00013698,2]
[342048035,1731388243251,-500.0,0.00013698,2]
[342048036,1731388243261,-500.0,0.00013698,2]
[342048037,1731388243270,-500.0,0.00013698,2]
[342048038,1731388243281,-500.0,0.00013698,2]
[342048039,1731388243291,-501.612261,0.00013698,2]
[342048040,1731388243304,-500.0,0.00013698,2]
[342048041,1731388243317,-501.03558387,0.00013698,2]
[342048042,1731388243331,-500.0,0.00013698,2]
[342048043,1731388243345,-501.09526952,0.00013698,2]
[342048044,1731388243356,-500.0,0.00013698,2]
[342048045,1731388243368,-500.0,0.00013698,2]
[342048046,1731388243377,-500.0,0.00013698,2]
[342048047,1731388243387,-511.67365182,0.00013698,2]
[342048048,1731388243396,-501.0592414,0.00013698,2]
[342048049,1731388243405,-500.0,0.00013698,2]
[342048050,1731388243415,-500.0,0.00013698,2]
[342048051,1731388243424,-500.0,0.00013698,2]
[342048052,1731388243433,-500.0,0.00013698,2]
[342048053,1731388243441,-500.0,0.00013698,2]
[342048054,1731388243450,-500.0,0.00013698,2]
[342048055,1731388243460,-500.0,0.00013698,2]
[342048056,1731388243469,-500.0,0.00013698,2]
[342048057,1731388243478,-500.0,0.00013698,2]
[342048058,1731388243488,-500.0,0.00013698,2]
[342048059,1731388243497,-500.0,0.00013698,2]
[342048060,1731388243507,-500.0,0.00013698,2]
[342048061,1731388243516,-780.1,0.00013698,2]
[342048062,1731388243526,-780.1,0.00013698,2]
[342048063,1731388243536,-780.1,0.00013698,2]
[342048064,1731388243546,-500.0,0.00013698,2]
[342048065,1731388243555,-500.0,0.00013698,2]
[342048066,1731388243565,-500.0,0.00013698,2]
[342048067,1731388243574,-500.0,0.00013698,2]
[342048068,1731388243584,-500.0,0.00013698,2]
[342048069,1731388243593,-500.0,0.00013698,2]
[342048070,1731388243602,-417.67978093,0.00013698,2]
[342048071,1731388243611,-500.0,0.00013698,2]
[342048072,1731388243621,-500.0,0.00013698,2]
[342048073,1731388243630,-500.0,0.00013698,2]
[342048074,1731388243640,-319.40207577,0.00013698,2]
[342048075,1731388243649,-500.0,0.00013698,2]
[342048076,1731388243659,-500.0,0.00013698,2]
[342048077,1731388243668,-500.0,0.00013698,2]
[342048078,1731388243678,-500.0,0.00013698,2]
[342048079,1731388243687,-500.0,0.00013698,2]
[342048080,1731388243696,-500.0,0.00013698,2]
[342048081,1731388243705,-500.0,0.00013698,2]
[342048082,1731388243715,-500.0,0.00013698,2]
[342048083,1731388243724,-500.0,0.00013698,2]
[342048084,1731388243733,-500.0,0.00013698,2]
[342048085,1731388243744,-500.0,0.00013698,2]
[342048086,1731388243753,-500.0,0.00013698,2]
[342048087,1731388243763,-500.0,0.00013698,2]
[342048088,1731388243772,-500.0,0.00013698,2]
[342048089,1731388243782,-500.0,0.00013698,2]
[342048090,1731388243791,-500.0,0.00013698,2]
[342048091,1731388243801,-419.55178913,0.00013698,2]
[342048092,1731388243811,-747.81,0.00013698,2]
[342048093,1731388243820,-747.81,0.00013698,2]
[342048094,1731388243831,-747.81,0.00013698,2]
[342048095,1731388243840,-500.0,0.00013698,2]
[342048096,1731388243849,-500.0,0.00013698,2]
[342048097,1731388243859,-500.0,0.00013698,2]
[342048098,1731388243869,-506.7,0.00013698,2]
[342048099,1731388243880,-500.0,0.00013698,2]
[342048100,1731388243896,-500.0,0.00013698,2]
[342048101,1731388243905,-500.0,0.00013698,2]
[342048102,1731388243914,-500.0,0.00013698,2]
[342048103,1731388243924,-500.0,0.00013698,2]
[342048104,1731388243934,-500.0,0.00013698,2]
[342048105,1731388243943,-500.0,0.00013698,2]
[342048106,1731388243953,-500.0,0.00013698,2]
[342048107,1731388243965,-500.0,0.00013698,2]
[342048108,1731388243974,-500.0,0.00013698,2]
[342048109,1731388243983,-500.0,0.00013698,2]
[342048110,1731388243992,-500.0,0.00013698,2]
[342048111,1731388244002,-500.0,0.00013698,2]
[342048112,1731388244013,-500.0,0.00013698,2]
[342048113,1731388244022,-555.35,0.00013698,2]
[342048114,1731388244031,-555.35,0.00013698,2]
[342048115,1731388244041,-555.35,0.00013698,2]
[342048116,1731388244050,-309.48577481,0.00013698,2]
[342048117,1731388244059,-500.0,0.00013698,2]
[342048118,1731388244068,-500.0,0.00013698,2]
[342048119,1731388244078,-503.04343041,0.00013698,2]
[342048120,1731388244087,-500.0,0.00013698,2]
[342048121,1731388244096,-500.0,0.00013698,2]
[342048122,1731388244106,-500.0,0.00013698,2]
[342048123,1731388244115,-500.0,0.00013698,2]
[342048124,1731388244124,-500.0,0.00013698,2]
[342048125,1731388244134,-500.0,0.00013698,2]
[342048126,1731388244143,-500.0,0.00013698,2]
[342048127,1731388244153,-500.0,0.00013698,2]
[342048128,1731388244163,-500.0,0.00013698,2]
[342048129,1731388244172,-500.0,0.00013698,2]
[342048130,1731388244182,-500.0,0.00013698,2]
[342048131,1731388244192,-840.48,0.00013698,2]
[342048132,1731388244202,-500.0,0.00013698,2]
[342048133,1731388244212,-500.0,0.00013698,2]
[342048134,1731388244222,-500.0,0.00013698,2]
[342048135,1731388244231,-500.0,0.00013698,2]
[342048136,1731388244240,-500.0,0.00013698,2]
[342048137,1731388244250,-250.0,0.00013698,2]
[342048138,1731388244261,-503.0214696,0.00013698,2]
[342048139,1731388244272,-500.0,0.00013698,2]
[342048140,1731388244281,-1063.65,0.00013698,2]
[342048141,1731388244291,-1063.65,0.00013698,2]
[342048142,1731388244301,-1063.65,0.00013698,2]
[342048143,1731388244310,-500.0,0.00013698,2]
[342048144,1731388244320,-500.0,0.00013698,2]
[342048145,1731388244333,-500.0,0.00013698,2]
[342048146,1731388244343,-500.0,0.00013698,2]
[342048147,1731388244353,-500.0,0.00013698,2]
[342048148,1731388244362,-500.0,0.00013698,2]
[342048149,1731388244372,-500.0,0.00013698,2]
[342048150,1731388244381,-1921.12,0.00013698,2]
[342048151,1731388244390,-1921.12,0.00013698,2]
[342048152,1731388244400,-1921.12,0.00013698,2]
[342048153,1731388244410,-500.0,0.00013698,2]
[342048154,1731388244419,-397.49631616,0.00013698,2]
[342048155,1731388244806,-19.71883661,0.00013698,2]
[342048156,1731388244868,-82.78484723,0.00013698,2]
[342048157,1731388244878,-500.0,0.00013698,2]
[342048158,1731388244887,-500.0,0.00013698,2]
[342048159,1731388244898,-500.0,0.00013698,2]
[342048160,1731388244908,-500.0,0.00013698,2]
[342048161,1731388244918,-500.0,0.00013698,2]
[342048162,1731388244928,-500.0,0.00013698,2]
[342048163,1731388244938,-500.0,0.00013698,2]
[342048164,1731388244948,-244.8781701,0.00013698,2]
[342048165,1731388244959,-500.0,0.00013698,2]
[342048166,1731388244973,-500.0,0.00013698,2]
[342048167,1731388244982,-500.0,0.00013698,2]
[342048168,1731388244992,-500.0,0.00013698,2]
[342048169,1731388245002,-500.0,0.00013698,2]
[342048170,1731388245015,-583.15,0.00013698,2]
[342048171,1731388245025,-583.15,0.00013698,2]
[342048172,1731388245035,-583.15,0.00013698,2]
[342048173,1731388245045,-150.0,0.00013698,2]
[342048174,1731388245055,-500.0,0.00013698,2]
[342048175,1731388245065,-500.0,0.00013698,2]
[342048176,1731388245074,-500.0,0.00013698,2]
[342048177,1731388245088,-500.0,0.00013698,2]
[342048178,1731388245097,-521.52621662,0.00013698,2]
[342048179,1731388245107,-500.0,0.00013698,2]
[342048180,1731388245116,-500.0,0.00013698,2]
[342048181,1731388245125,-500.0,0.00013698,2]
[342048182,1731388245135,-529.16496979,0.00013698,2]
[342048183,1731388245144,-544.55927978,0.00013698,2]
[342048184,1731388245154,-298.44,0.00013698,2]
[342048185,1731388245163,-648.58588448,0.00013698,2]
[342048186,1731388245175,-321.03411552,0.00013698,2]
[342048187,1731388245185,-500.0,0.00013698,2]
[342048188,1731388245194,-500.0,0.00013698,2]
[342048189,1731388245204,-500.0,0.00013698,2]
[342048190,1731388245213,-500.0,0.00013698,2]
[342048191,1731388245223,-1375.49,0.00013698,2]
[342048192,1731388245232,-500.0,0.00013698,2]
[342048193,1731388245242,-266.82,0.00013698,2]
[342048194,1731388245251,-500.0,0.00013698,2]
[342048195,1731388245260,-500.0,0.00013698,2]
[342048196,1731388245270,-555.5,0.00013698,2]
[342048197,1731388245280,-237.53212643,0.00013698,2]
[342048198,1731388245289,-128.54305,0.00013698,2]
[342048199,1731388245301,-371.45695,0.00013698,2]
[342048200,1731388245310,-500.0,0.00013698,2]
[342048201,1731388245320,-500.0,0.00013698,2]
[342048202,1731388245334,-122.62957986,0.00013698,2]
[342048213,1731388245768,-785.97042014,0.00013698,2]
[342048215,1731388245779,-815.78,0.00013698,2]
[342048217,1731388245790,-908.6,0.00013698,2]
[342048219,1731388245800,-559.41543149,0.00013698,2]
[342048222,1731388245992,-256.36456851,0.00013698,2]
[342048223,1731388246003,-908.6,0.00013698,2]
[342048224,1731388246013,-815.78,0.00013698,2]
[342048225,1731388246023,-170.44,0.00013698,2]
[342048226,1731388246032,-500.0,0.00013698,2]
[342048227,1731388246044,-500.0,0.00013698,2]
[342048228,1731388246065,-1016.01,0.00013698,2]
[342048229,1731388246080,-1016.01,0.00013698,2]
[342048230,1731388246091,-538.13611228,0.00013698,2]
[342048231,1731388246100,-1016.01,0.00013698,2]
[342048232,1731388246110,-906.59,0.00013698,2]
[342048233,1731388246120,-870.56,0.00013698,2]
[342048234,1731388246131,-870.56,0.00013698,2]
[342048235,1731388246141,-870.56,0.00013698,2]
[342048236,1731388246151,-515.21346574,0.00013698,2]
[342048237,1731388246161,-500.0,0.00013698,2]
[342048238,1731388246170,-500.0,0.00013698,2]
[342048239,1731388246181,-182.31938547,0.00013698,2]
[342048240,1731388246195,-895.96061453,0.00013698,2]
[342048241,1731388246205,-1078.28,0.00013698,2]
[342048242,1731388246214,-647.9,0.00013698,2]
[342048243,1731388246224,-1078.28,0.00013698,2]
[342048244,1731388246235,-500.0,0.00013698,2]
[342048245,1731388246245,-505.02248072,0.00013698,2]
[342048246,1731388246255,-500.0,0.00013698,2]
[342048247,1731388246266,-500.0,0.00013698,2]
[342048248,1731388246275,-1625.06,0.00013698,2]
[342048249,1731388246286,-500.0,0.00013698,2]
[342048250,1731388246296,-500.0,0.00013698,2]
[342048251,1731388246307,-500.0,0.00013698,2]
[342048252,1731388246317,-500.0,0.00013698,2]
[342048253,1731388246328,-500.0,0.00013698,2]
[342048254,1731388246339,-500.0,0.00013698,2]
[342048255,1731388246349,-709.79,0.00013698,2]
[342048256,1731388246360,-709.79,0.00013698,2]
[342048257,1731388246371,-709.79,0.00013698,2]
[342048258,1731388246381,-500.0,0.00013698,2]
[342048259,1731388246392,-1326.66,0.00013698,2]
[342048260,1731388246402,-1326.66,0.00013698,2]
[342048261,1731388246413,-1326.66,0.00013698,2]
[342048262,1731388246423,-500.0,0.00013698,2]
[342048263,1731388246433,-500.0,0.00013698,2]
[342048264,1731388246444,-500.0,0.00013698,2]
[342048265,1731388246454,-500.0,0.00013698,2]
[342048266,1731388246463,-500.0,0.00013698,2]
[342048267,1731388246474,-500.0,0.00013698,2]
[342048268,1731388246484,-500.0,0.00013698,2]
[342048269,1731388246495,-602.15,0.00013698,2]
[342048270,1731388246506,-500.0,0.00013698,2]
[342048271,1731388246516,-500.0,0.00013698,2]
[342048272,1731388246527,-500.0,0.00013698,2]
[342048273,1731388246537,-500.0,0.00013698,2]
[342048274,1731388246548,-500.0,0.00013698,2]
[342048275,1731388246560,-518.99,0.00013698,2]
[342048276,1731388246569,-500.0,0.00013698,2]
[342048277,1731388246584,-500.0,0.00013698,2]
[342048278,1731388246594,-504.21560902,0.00013698,2]
[342048279,1731388246605,-500.0,0.00013698,2]
[342048280,1731388246615,-500.0,0.00013698,2]
[342048281,1731388246627,-500.0,0.00013698,2]
[342048282,1731388246638,-500.0,0.00013698,2]
[342048283,1731388246648,-505.90629236,0.00013698,2]
[342048284,1731388246658,-501.04411914,0.00013698,2]
[342048285,1731388246668,-500.0,0.00013698,2]
[342048286,1731388246679,-500.0,0.00013698,2]
[342048287,1731388246689,-500.0,0.00013698,2]
[342048288,1731388246699,-638.93,0.00013698,2]
[342048289,1731388246709,-500.0,0.00013698,2]
[342048290,1731388246719,-500.0,0.00013698,2]
[342048291,1731388246729,-500.0,0.00013698,2]
[342048292,1731388246739,-500.0,0.00013698,2]
[342048293,1731388246749,-500.0,0.00013698,2]
[342048294,1731388246760,-1926.93,0.00013698,2]
[342048295,1731388246770,-149.18088425,0.00013698,2]
[342048296,1731388246786,-1403.22638089,0.00013698,2]
[342048297,1731388315099,601.65,0.00010959,2]
[342048298,1731388325636,501.38,0.00010959,2]
[342048299,1731388336177,417.81,0.00010959,2]
[342048300,1731388346736,348.18,0.00010959,2]
[342048301,1731388357497,290.15,0.00010959,2]
[342048302,1731388361828,150.0,0.00035973,30]
[342048303,1731388368044,241.79,0.00010959,2]
[342048304,1731388378603,201.49,0.00010959,2]
[342048305,1731388389193,167.91,0.00010959,2]
[342048306,1731388390734,160.31,0.00010288,2]
[342048307,1731388400213,839.57,0.00010959,2]
[342048308,1731388417044,153.84,0.00010293,2]
[342048309,1731388418710,1055.13996397,0.00035973,30]
[342048310,1731388491612,311.7307,0.00012401,2]
[342048311,1731388514315,453.674761,0.00012438,2]
[342048312,1731388533466,38344.0,0.00035973,30]
[342048314,1731388734136,1000.0,0.00035979,30]
[342048315,1731388734685,1000.0,0.00035979,30]
[342048316,1731388735221,1000.0,0.00035979,30]
[342048317,1731388735780,1000.0,0.00035979,30]
[342048318,1731388736834,1000.0,0.00035979,30]
[342048319,1731388737386,1000.0,0.00035979,30]
[342048320,1731388738330,1000.0,0.00035979,30]
[342048321,1731388738910,1000.0,0.00035979,30]
[342048322,1731388739455,1000.0,0.00035979,30]
[342048323,1731388739985,1000.0,0.00035979,30]
[342048324,1731388741132,1000.0,0.00035979,30]
[342048325,1731388741763,1000.0,0.00035979,30]
[342048326,1731388742298,1000.0,0.00035979,30]
[342048327,1731388743006,1000.0,0.00035979,30]
[342048328,1731388743908,1000.0,0.00035979,30]
[342048329,1731388744617,1000.0,0.00035979,30]
[342048330,1731388745147,1000.0,0.00035979,30]
[342048331,1731388745695,1000.0,0.00035979,30]
[342048332,1731388746297,1000.0,0.00035979,30]
[342048333,1731388747074,1000.0,0.00035979,30]
[342048334,1731388748004,1000.0,0.00035979,30]
[342048335,1731388748704,1000.0,0.00035979,30]
[342048336,1731388749282,1000.0,0.00035979,30]
[342048337,1731388749855,1000.0,0.00035979,30]
[342048338,1731388750416,1000.0,0.00035979,30]
[342048339,1731388751444,1000.0,0.00035979,30]
[342048340,1731388752017,1000.0,0.00035979,30]
[342048341,1731388752712,1000.0,0.00035979,30]
[342048342,1731388753203,1000.0,0.00035979,30]
[342048343,1731388753751,597.0327873,0.00035979,30]
[342048344,1731388800212,1333.0,0.00026137,120]
[342048346,1731388974045,2182987.24967358,0.00035979,30]
[342048347,1731388977499,170.92,0.00012493,2]
[342048348,1731389005587,628.83,8.219e-05,2]
[342048349,1731389005812,628.83,0.00011644,2]
[342048351,1731389035875,15074.09291595,0.00012439,2]
[342048352,1731389077060,1727.44,0.0001056,2]
[342048353,1731389102234,1177.28,0.00012433,2]
[342048354,1731389112158,1005.69,0.00012399,2]
[342048355,1731389117774,1000.0,0.00012441,2]
[342048356,1731389120366,300.97681595,9e-05,2]
[342048357,1731389127464,160.31,9.953e-05,2]
[342048358,1731389137239,9352.46136271,9e-05,2]
[342048359,1731389137415,535.38,0.00012441,2]
[342048360,1731389155856,750.0,6.94e-05,2]
[342048361,1731389167936,1013.0,0.00027,60]
[342048362,1731389176479,250.0,0.00012458,2]
[342048363,1731389176513,10004.0,0.00012,2]
[342048364,1731389217520,6447.78,0.00012496,2]
[342048365,1731389250138,-450.09380964,0.00012531,2]
[342048366,1731389319509,150.0,0.0001,2]
[342048367,1731389319530,62.88426028,0.0001,2]
[342048374,1731389323123,87.11573972,0.0001,2]
[342048375,1731389323144,150.0,0.0001,2]
[342048376,1731389323165,150.0,0.0001,2]
[342048377,1731389323186,150.0,0.0001,2]
[342048378,1731389323210,1161.62115875,0.0001,2]
[342048383,1731389326416,255.18633618,0.000107,2]
[342048385,1731389352116,-25.45619036,0.00012531,2]
[342048386,1731389352135,-1128.16479334,0.00012539,2]
[342048387,1731389418500,1852.42,0.00012408,2]
[342048388,1731389427010,-1828.17520666,0.00012539,2]
[342048389,1731389427030,-150.0,0.00012539,2]
[342048390,1731389427052,-150.0,0.00012539,2]
[342048391,1731389427073,-150.0,0.00012539,2]
[342048392,1731389427092,-150.0,0.00012539,2]
[342048393,1731389427113,-150.0,0.00012539,2]
[342048394,1731389427135,-150.0,0.00012539,2]
[342048395,1731389427155,-150.0,0.00012539,2]
[342048396,1731389427175,-150.0,0.00012539,2]
[342048397,1731389427196,-150.0,0.00012539,2]
[342048398,1731389427216,-150.0,0.00012539,2]
[342048399,1731389427236,-150.0,0.00012539,2]
[342048400,1731389427255,-150.0,0.00012539,2]
[342048401,1731389427276,-150.0,0.00012539,2]
[342048402,1731389427296,-150.0,0.00012539,2]
[342048403,1731389427318,-150.0,0.00012539,2]
[342048404,1731389427338,-150.0,0.00012539,2]
[342048405,1731389427358,-150.0,0.00012539,2]
[342048406,1731389427378,-150.0,0.00012539,2]
[342048407,1731389427400,-150.0,0.00012539,2]
[342048408,1731389427420,-150.0,0.00012539,2]
[342048409,1731389427440,-150.0,0.00012539,2]
[342048410,1731389427461,-164.70155079,0.00012539,2]
[342048411,1731389427484,-800.0,0.00012551,2]
[342048412,1731389427504,-220.38,0.00012596,2]
[342048413,1731389427524,-153.29,0.00012692,2]
[342048414,1731389427544,-250.0,0.00012766,2]
[342048415,1731389427567,-300.0,0.00012781,2]
[342048416,1731389427587,-3133.45324255,0.00012782,2]
[342048423,1731389431944,-2663.91243218,0.00012782,2]
[342048427,1731389432026,-1739.18342877,0.00012782,2]
[342048428,1731389432045,-692.8922014,0.00012782,2]
[342048429,1731389432125,-851.94168474,0.00012782,2]
[342048430,1731389432144,-4429.65,0.00012782,2]
[342048431,1731389432155,-10388.96701036,0.00012782,2]